bitfinex-derivatives/quotes_ETHF0:USTF0_20240818
["timestamp","ask_amount","ask_price","bid_price","bid_amount"]
[1723968169116,0.35735308,2608.5,2608.4,48.2887696]
[1723968170202,0.35735308,2608.5,2608.4,46.9471396]
[1723968170410,0.36915308,2608.5,2608.4,48.2887696]
[1723968170810,0.36915308,2608.5,2608.4,46.9471396]
[1723968172599,0.36915308,2608.5,2608.4,48.2887696]
[1723968172922,0.36915308,2608.5,2608.4,50.1549396]
[1723968173910,0.36915308,2608.5,2608.4,46.3213396]
[1723968174112,0.36915308,2608.5,2608.4,50.1549396]
[1723968176913,0.01675308,2608.5,2608.4,50.1549396]
[1723968177102,0.01675308,2608.5,2608.4,51.8411696]
[1723968177307,0.01675308,2608.5,2608.4,49.5325396]
[1723968177503,0.01675308,2608.5,2608.4,50.1549396]
[1723968178812,0.01675308,2608.5,2608.4,51.4965696]
[1723968179311,0.01675308,2608.5,2608.4,50.5169396]
[1723968181719,0.01675308,2608.5,2608.4,51.8585696]
[1723968181912,0.01675308,2608.5,2608.4,51.4965696]
[1723968184612,0.01675308,2608.5,2608.4,52.8381996]
[1723968185417,0.01675308,2608.5,2608.4,51.4965696]
[1723968185609,0.01675308,2608.5,2608.4,52.8381996]
[1723968185806,0.01675308,2608.5,2608.4,51.4965696]
[1723968188124,0.00495308,2608.5,2608.4,51.4965696]
[1723968189641,0.00495308,2608.5,2608.4,48.2887696]
[1723968189924,0.00495308,2608.5,2608.4,51.4965696]
[1723968190515,0.00495308,2608.5,2608.4,52.8381996]
[1723968190728,0.00495308,2608.5,2608.4,51.4965696]
[1723968191826,0.00495308,2608.5,2608.4,48.2887696]
[1723968192227,0.00495308,2608.5,2608.4,51.4965696]
[1723968194632,0.00495308,2608.5,2608.4,46.6959696]
[1723968194925,0.00495308,2608.5,2608.4,46.3213396]
[1723968195232,1.50582945,2608.5,2608.4,46.3213396]
[1723968196025,0.00495308,2608.5,2608.4,46.3213396]
[1723968196226,1.50582945,2608.5,2608.4,46.3213396]
[1723968196729,0.00495308,2608.5,2608.4,43.1135396]
[1723968196931,1.85291351,2608.5,2608.4,43.1135396]
[1723968197734,0.34735308,2608.5,2608.4,43.1135396]
[1723968197932,1.85304682,2608.5,2608.4,43.1135396]
[1723968198321,0.34735308,2608.5,2608.4,43.1135396]
[1723968198530,1.85332611,2608.5,2608.4,43.1135396]
[1723968199026,0.34735308,2608.5,2608.4,43.1135396]
[1723968199333,1.68893308,2608.5,2608.4,43.1135396]
[1723968199636,3.69010157,2608.5,2608.4,43.1135396]
[1723968199821,1.68893308,2608.5,2608.4,43.1135396]
[1723968200327,3.69010157,2608.5,2608.4,40.8049096]
[1723968200526,1.68893308,2608.5,2608.4,40.8049096]
[1723968200835,8.99099369,2608.5,2608.4,40.8049096]
[1723968201025,13.99099369,2608.5,2608.4,40.8049096]
[1723968203135,1.34181,2608.1,2607.9,0.967]
[1723968203428,0.6574,2608.0,2607.9,2.30888]
[1723968203633,2.66638619,2608.0,2607.8,1.34192]
[1723968203823,4.31789619,2607.9,2607.6,0.355]
[1723968204023,2.97598619,2607.9,2607.7,1.34198]
[1723968204225,3.8344,2607.8,2607.7,1.34585206]
[1723968204425,5.84274227,2607.8,2607.7,0.00387206]
[1723968204651,3.8344,2607.8,2607.7,40.80387206]
[1723968205539,5.84203256,2607.8,2607.7,42.14586206]
[1723968207239,3.8344,2607.8,2607.7,42.52336206]
[1723968207429,5.84203256,2607.8,2607.7,43.49036206]
[1723968207628,2.00763256,2607.9,2607.8,1.34194]
[1723968207829,0.3734,2608.0,2607.9,1.34189]
[1723968207830,2.38103256,2608.0,2607.9,1.34189]
[1723968208041,0.3734,2608.0,2607.9,1.34189]
[1723968210243,2.38103256,2608.0,2607.9,1.34189]
[1723968210438,0.3734,2608.0,2607.9,1.34189]
[1723968210637,0.3734,2608.0,2607.8,0.967]
[1723968210638,2.38103256,2608.0,2607.8,2.30891]
[1723968210939,1.50406662,2607.9,2607.8,1.34191]
[1723968211244,1.50403988,2607.9,2607.8,1.34191]
[1723968212937,6.30543988,2607.9,2607.7,40.80387206]
[1723968213147,6.30543988,2607.9,2607.7,42.14582206]
[1723968213148,5.33843988,2607.8,2607.7,42.14582206]
[1723968213840,3.8344,2607.8,2607.7,42.14582206]
[1723968228337,4.18630988,2608.0,2607.7,40.80387206]
[1723968228542,8.02070988,2608.0,2607.8,1.34193]
[1723968228939,2.68227,2608.0,2607.9,0.3642]
[1723968229350,6.51667,2608.0,2607.9,0.3642]
[1723968233439,8.52430256,2608.0,2607.9,0.3642]
[1723968234051,8.52430256,2608.0,2607.7,42.14582206]
[1723968234250,1.5031787,2607.8,2607.7,42.50992206]
[1723968235452,1.5031787,2607.8,2607.7,41.16797206]
[1723968235652,1.5031787,2607.8,2607.7,42.50996206]
[1723968239350,2.97463256,2607.9,2607.8,1.34194]
[1723968239746,6.80903256,2607.9,2607.8,1.34194]
[1723968240150,8.15092256,2607.9,2607.7,42.50994206]
[1723968240457,2.00763256,2607.8,2607.7,42.50994206]
[1723968240852,2.01943256,2607.8,2607.7,42.50994206]
[1723968242448,0.0118,2607.8,2607.7,42.50994206]
[1723968242648,0.0118,2607.8,2607.5,0.00575738]
[1723968242649,8.8462,2607.8,2607.5,0.00575738]
[1723968242854,2.68408,2607.6,2607.5,0.00575738]
[1723968243157,1.34204,2607.6,2607.5,0.00575738]
[1723968243350,10.55274,2607.6,2607.5,0.00575738]
[1723968243748,10.55274,2607.6,2607.5,40.80957911]
[1723968245751,5.55274,2607.6,2607.5,40.80957911]
[1723968245947,0.3755,2607.6,2607.5,40.80957911]
[1723968246152,2.51098701,2607.6,2607.5,42.15166911]
[1723968246359,0.967,2607.7,2607.5,42.15166911]
[1723968246561,0.967,2607.7,2607.6,0.3471]
[1723968246756,0.967,2607.7,2607.6,0.7112]
[1723968247157,2.30899,2607.7,2607.6,0.7112]
[1723968247458,8.08785274,2607.7,2607.5,40.80957911]
[1723968247660,0.967,2607.6,2607.5,40.80957911]
[1723968248161,4.8022,2607.6,2607.5,40.80957911]
[1723968249678,0.967,2607.6,2607.5,40.80957911]
[1723968250056,4.8022,2607.6,2607.5,40.80957911]
[1723968251268,0.967,2607.6,2607.5,40.80957911]
[1723968251461,4.8022,2607.6,2607.5,40.80957911]
[1723968253364,0.967,2607.6,2607.5,40.80957911]
[1723968253661,0.967,2607.7,2607.5,40.80957911]
[1723968254765,4.35552274,2607.8,2607.7,1.34199]
[1723968254766,0.0118,2607.8,2607.7,1.34199]
[1723968254965,2.02039409,2607.8,2607.7,1.71169]
[1723968255156,2.02039409,2607.8,2607.7,42.51169]
[1723968256264,0.0118,2607.8,2607.7,42.51169]
[1723968256961,2.52270199,2607.8,2607.7,42.51169]
[1723968257956,0.0118,2607.8,2607.7,42.51169]
[1723968258359,2.52270199,2607.8,2607.7,42.51169]
[1723968258557,2.51090199,2607.8,2607.7,42.51169]
[1723968260067,2.51090199,2607.8,2607.7,41.1697]
[1723968260262,3.47820043,2607.8,2607.7,41.1697]
[1723968260464,2.30894,2607.8,2607.7,40.8]
[1723968262067,0.967,2607.8,2607.7,40.8]
[1723968262465,3.47829444,2607.8,2607.7,40.8]
[1723968263172,0.967,2607.8,2607.7,40.8]
[1723968263367,3.47824296,2607.8,2607.7,40.8]
[1723968263566,0.967,2607.8,2607.7,40.8]
[1723968263966,3.4783124,2607.8,2607.7,40.8]
[1723968264161,0.967,2607.8,2607.7,40.8]
[1723968264377,3.47832924,2607.8,2607.7,40.8]
[1723968264681,0.967,2607.8,2607.7,40.8]
[1723968265370,3.47829643,2607.8,2607.7,42.14199]
[1723968265591,2.51129643,2607.9,2607.8,1.34194]
[1723968265759,2.51129643,2607.9,2607.8,2.07374]
[1723968266175,0.967,2608.0,2607.9,1.34189]
[1723968266176,3.47829643,2608.0,2607.9,1.34189]
[1723968269066,0.967,2608.0,2607.9,1.34189]
[1723968269776,3.47805046,2608.0,2607.9,1.34189]
[1723968272970,0.967,2608.0,2607.9,1.34189]
[1723968274171,3.47794812,2608.0,2607.9,1.34189]
[1723968275278,3.48974812,2608.0,2607.9,1.34189]
[1723968277275,3.48974812,2608.0,2607.8,2.07371]
[1723968279275,2.51094812,2607.9,2607.8,2.07371]
[1723968280284,3.48974812,2608.0,2607.8,2.07371]
[1723968280474,2.51094812,2607.9,2607.8,0.3676]
[1723968280880,2.51094812,2607.9,2607.8,1.70954]
[1723968281282,3.47794812,2607.9,2607.8,0.3676]
[1723968282389,3.47794812,2607.9,2607.8,1.70954]
[1723968284488,3.47794812,2607.9,2607.8,0.3676]
[1723968285195,3.47794812,2607.9,2607.8,1.70954]
[1723968286693,3.47794812,2607.9,2607.8,0.3676]
[1723968287590,3.47794812,2607.9,2607.8,1.70954]
[1723968287789,3.47794812,2607.9,2607.8,0.3676]
[1723968287991,3.47794812,2607.9,2607.8,1.70954]
[1723968291393,3.47794812,2607.9,2607.8,0.3676]
[1723968292597,0.967,2607.9,2607.8,0.3676]
[1723968293600,2.30893,2607.9,2607.7,40.8]
[1723968293900,4.20526119,2607.8,2607.7,40.8]
[1723968294302,2.66014,2607.8,2607.7,40.8]
[1723968294603,8.12018,2607.8,2607.7,40.8]
[1723968295497,11.12193274,2607.8,2607.7,40.8]
[1723968298003,8.12018,2607.8,2607.7,40.8]
[1723968299701,11.62222486,2607.8,2607.7,40.8]
[1723968299902,8.12018,2607.8,2607.7,40.8]
[1723968300294,3.36751741,2607.8,2607.7,40.8]
[1723968300500,1.3182,2607.8,2607.7,40.8]
[1723968301406,1.3182,2607.8,2607.7,41.5155]
[1723968301608,4.33451741,2607.8,2607.7,41.5155]
[1723968301998,8.16891741,2607.8,2607.7,41.5155]
[1723968302198,4.33451741,2607.8,2607.7,41.5155]
[1723968302909,5.1526,2607.8,2607.7,41.5155]
[1723968303105,8.16891741,2607.8,2607.7,41.5155]
[1723968303407,5.67645741,2607.8,2607.7,41.5155]
[1723968303605,4.33451741,2607.8,2607.7,41.5155]
[1723968303799,1.3182,2607.8,2607.7,42.85749]
[1723968304309,0.967,2607.8,2607.7,42.85749]
[1723968304500,0.967,2607.8,2607.7,41.5155]
[1723968305208,0.967,2607.8,2607.7,42.85749]
[1723968305411,0.967,2607.8,2607.7,41.5155]
[1723968305602,6.14334,2607.8,2607.7,41.5155]
[1723968305909,6.14334,2607.8,2607.7,41.172]
[1723968306098,9.50965741,2607.8,2607.7,41.172]
[1723968306494,9.50965741,2607.8,2607.7,40.8]
[1723968307107,6.49334,2607.8,2607.7,40.8]
[1723968308608,9.5090054,2607.8,2607.7,40.8]
[1723968308911,5.6746054,2607.8,2607.7,40.8]
[1723968309610,3.9826654,2607.9,2607.7,40.8]
[1723968309797,3.9826654,2607.9,2607.8,0.3795]
[1723968309999,3.9826654,2607.9,2607.8,0.3677]
[1723968310000,7.8170654,2607.9,2607.8,0.3677]
[1723968310612,7.8170654,2607.9,2607.8,0.7338]
[1723968311411,3.9826654,2607.9,2607.8,0.7338]
[1723968312507,9.1589554,2607.9,2607.8,0.7338]
[1723968312902,10.5008454,2607.9,2607.8,0.3677]
[1723968313108,7.48518,2607.9,2607.8,0.3677]
[1723968313910,6.14329,2607.9,2607.8,0.3677]
[1723968316814,4.35710607,2607.9,2607.8,0.3677]
[1723968317118,5.32410607,2607.9,2607.8,0.3677]
[1723968317313,9.15850607,2607.9,2607.8,0.3677]
[1723968318509,0.967,2607.9,2607.8,0.3677]
[1723968318704,2.30889,2607.9,2607.8,0.3677]
[1723968319820,0.967,2607.9,2607.8,0.3677]
[1723968320521,5.32410607,2607.9,2607.8,0.3677]
[1723968323714,2.30889,2607.9,2607.8,0.3677]
[1723968324213,5.32410607,2607.9,2607.8,0.3677]
[1723968324415,3.98221607,2607.9,2607.8,0.3677]
[1723968324823,5.32410607,2607.9,2607.8,0.3677]
[1723968325217,3.98221607,2607.9,2607.8,0.3677]
[1723968325422,3.98221607,2607.9,2607.8,1.70964]
[1723968325423,0.967,2607.9,2607.8,1.70964]
[1723968326027,0.967,2607.9,2607.8,0.3677]
[1723968326422,0.967,2607.9,2607.8,1.70964]
[1723968326623,2.30889,2607.9,2607.8,0.3677]
[1723968326823,0.967,2607.9,2607.8,0.3677]
[1723968329031,2.30889,2607.9,2607.8,0.3677]
[1723968329834,5.32410607,2607.9,2607.8,0.3677]
[1723968330635,3.98221607,2607.9,2607.8,0.3677]
[1723968332135,5.32410607,2607.9,2607.8,0.3677]
[1723968332535,0.967,2607.9,2607.8,0.3677]
[1723968332727,3.98221607,2607.9,2607.8,0.3677]
[1723968336535,3.01521607,2607.9,2607.8,0.3677]
[1723968336731,0.967,2607.9,2607.8,0.3677]
[1723968337441,3.98221607,2607.9,2607.8,0.3677]
[1723968338736,0.967,2607.9,2607.8,0.3677]
[1723968338938,3.98221607,2607.9,2607.8,0.3677]
[1723968339335,0.967,2607.9,2607.8,0.3677]
[1723968339539,3.98221607,2607.9,2607.8,0.3677]
[1723968340532,0.967,2607.9,2607.8,0.3677]
[1723968342029,3.01521607,2608.1,2607.8,4.2021]
[1723968342234,3.01521607,2608.1,2607.8,0.3677]
[1723968342440,0.967,2608.2,2607.9,1.70285]
[1723968342441,3.98221607,2608.2,2607.9,1.70285]
[1723968342738,3.98221607,2608.2,2608.0,1.69832]
[1723968343946,5.32395607,2608.2,2608.0,0.3565]
[1723968344148,2.30878,2608.1,2607.9,0.361]
[1723968344342,0.967,2608.0,2607.9,0.361]
[1723968345042,0.967,2608.0,2607.9,0.3492]
[1723968345247,0.967,2608.0,2607.9,1.69109]
[1723968345630,0.967,2608.0,2607.9,0.3492]
[1723968346036,0.967,2608.0,2607.9,1.69109]
[1723968347138,0.967,2608.1,2608.0,1.3418]
[1723968349245,0.967,2608.1,2607.9,1.69104]
[1723968349435,2.30884,2608.0,2607.9,0.3492]
[1723968349638,2.94864,2608.0,2607.9,0.3492]
[1723968353241,1.34194,2607.8,2607.7,40.8]
[1723968353443,0.967,2607.8,2607.7,40.8]
[1723968353638,2.30894,2607.8,2607.7,40.8]
[1723968353843,3.98221607,2607.8,2607.7,40.8]
[1723968354156,5.32415607,2607.8,2607.7,40.8]
[1723968356253,3.98221607,2607.8,2607.7,40.8]
[1723968356648,5.32415607,2607.8,2607.7,40.8]
[1723968359042,3.98221607,2607.8,2607.7,40.8]
[1723968359555,5.32415607,2607.8,2607.7,40.8]
[1723968360447,3.98221607,2607.8,2607.7,40.8]
[1723968360646,5.32415607,2607.8,2607.7,40.8]
[1723968361149,2.30894,2607.8,2607.7,40.8]
[1723968361542,5.32556285,2607.8,2607.7,40.8]
[1723968366047,10.98732486,2607.8,2607.7,40.8]
[1723968366256,10.02032486,2607.8,2607.7,40.8]
[1723968366453,10.98732486,2607.8,2607.7,40.8]
[1723968366954,7.48528,2607.8,2607.7,40.8]
[1723968367153,10.98732486,2607.8,2607.7,40.8]
[1723968368957,7.48528,2607.8,2607.7,40.8]
[1723968369149,11.48761698,2607.8,2607.7,40.8]
[1723968369557,7.48528,2607.8,2607.7,40.8]
[1723968370659,11.00235794,2607.8,2607.7,40.8]
[1723968373158,14.21015794,2607.8,2607.7,40.8]
[1723968373752,12.86821794,2607.8,2607.7,40.8]
[1723968373957,12.36505147,2607.8,2607.7,40.8]
[1723968374157,12.3650257,2607.8,2607.7,40.8]
[1723968374663,9.35114,2607.8,2607.7,40.8]
[1723968375065,12.36491969,2607.8,2607.7,40.8]
[1723968375468,9.35114,2607.8,2607.7,40.8]
[1723968376352,12.36483527,2607.8,2607.7,40.8]
[1723968376558,9.35114,2607.8,2607.7,40.8]
[1723968379069,6.14334,2607.8,2607.7,40.8]
[1723968379365,9.36294,2607.8,2607.7,40.8]
[1723968379867,6.15514,2607.8,2607.7,40.8]
[1723968380665,11.03417506,2607.8,2607.7,40.8]
[1723968381068,12.37611506,2607.8,2607.7,40.8]
[1723968382371,11.03417506,2607.8,2607.7,40.8]
[1723968382864,12.37611506,2607.8,2607.7,40.8]
[1723968384662,11.03417506,2607.8,2607.7,40.8]
[1723968385173,12.37611506,2607.8,2607.7,40.8]
[1723968385559,18.71805506,2607.8,2607.7,40.8]
[1723968385782,18.71805506,2607.8,2607.5,0.38137911]
[1723968385783,2.68408,2607.6,2607.5,0.38137911]
[1723968386066,7.16647099,2607.6,2607.5,0.38137911]
[1723968386267,11.00167099,2607.6,2607.5,0.38137911]
[1723968386668,11.00167099,2607.6,2607.5,41.18137911]
[1723968386874,11.00167099,2607.6,2607.5,40.80957911]
[1723968387167,9.65963099,2607.6,2607.5,40.80957911]
[1723968387364,10.01163099,2607.6,2607.5,40.80957911]
[1723968388659,10.01163099,2607.6,2607.5,40.8]
[1723968388866,1.3422,2607.3,2607.2,0.3633]
[1723968389073,7.562257,2607.3,2607.2,0.3633]
[1723968389267,11.39697445,2607.3,2607.2,0.3633]
[1723968389773,11.39697445,2607.3,2607.2,41.16619615]
[1723968391361,11.69634565,2607.3,2607.2,41.16619615]
[1723968392171,11.39697445,2607.3,2607.2,41.16619615]
[1723968392366,6.21957445,2607.3,2607.2,41.16619615]
[1723968392574,7.18657445,2607.3,2607.2,41.16619615]
[1723968394977,8.52877445,2607.3,2607.2,41.16619615]
[1723968396380,7.18657445,2607.3,2607.2,41.16619615]
[1723968396584,8.52877445,2607.3,2607.2,41.16619615]
[1723968397286,12.36397445,2607.3,2607.2,41.16619615]
[1723968398578,12.36332102,2607.3,2607.2,41.16619615]
[1723968398976,8.52812102,2607.3,2607.2,41.16619615]
[1723968400170,12.36332102,2607.3,2607.2,41.16619615]
[1723968401076,9.3522,2607.3,2607.2,41.16619615]
[1723968401278,12.36307284,2607.3,2607.2,41.16619615]
[1723968402689,13.70527284,2607.3,2607.2,41.16619615]
[1723968403392,9.87007284,2607.3,2607.2,41.16619615]
[1723968403771,8.52787284,2607.3,2607.2,41.16619615]
[1723968404683,4.1748,2607.3,2607.2,41.16619615]
[1723968404880,4.1748,2607.3,2607.2,46.34364615]
[1723968405971,6.68399082,2607.3,2607.2,46.34364615]
[1723968406575,4.1748,2607.3,2607.2,45.00139615]
[1723968406777,6.68399082,2607.3,2607.2,45.00139615]
[1723968407079,6.68399082,2607.3,2607.2,45.35539615]
[1723968408486,5.71699082,2607.3,2607.2,45.35539615]
[1723968408787,6.68399082,2607.3,2607.2,45.35539615]
[1723968408990,4.1748,2607.3,2607.2,45.35539615]
[1723968409490,4.1748,2607.3,2607.2,46.69764615]
[1723968409676,4.1748,2607.3,2607.2,45.35539615]
[1723968410080,6.68399082,2607.3,2607.2,45.35539615]
[1723968411391,4.1748,2607.3,2607.2,45.35539615]
[1723968412089,6.68488965,2607.3,2607.2,41.52019615]
[1723968412289,5.517,2607.3,2607.2,41.52019615]
[1723968412787,3.4108,2607.3,2607.2,41.52019615]
[1723968412991,5.54596079,2607.3,2607.2,45.35539615]
[1723968413292,3.0356,2607.3,2607.2,45.35539615]
[1723968413587,5.55776079,2607.3,2607.2,45.35539615]
[1723968413776,3.0474,2607.3,2607.2,45.35539615]
[1723968413982,5.55782412,2607.3,2607.2,41.52019615]
[1723968414184,3.0474,2607.3,2607.2,41.52019615]
[1723968414781,4.3896,2607.3,2607.2,41.52019615]
[1723968415182,3.0474,2607.3,2607.2,41.52019615]
[1723968415386,4.3896,2607.3,2607.2,41.52019615]
[1723968415788,4.3896,2607.3,2607.2,41.16619615]
[1723968416695,7.40047284,2607.3,2607.2,41.16619615]
[1723968417091,6.05827284,2607.3,2607.2,41.16619615]
[1723968417292,3.0474,2607.3,2607.2,41.16619615]
[1723968417491,4.3896,2607.3,2607.2,41.16619615]
[1723968417687,7.40047284,2607.3,2607.2,41.16619615]
[1723968417886,4.3896,2607.3,2607.2,41.16619615]
[1723968418297,7.40047284,2607.3,2607.2,41.16619615]
[1723968420191,11.23567284,2607.3,2607.2,41.16619615]
[1723968420497,7.40047284,2607.3,2607.2,40.80289615]
[1723968421392,11.23567284,2607.3,2607.2,40.80289615]
[1723968421796,7.40047284,2607.3,2607.2,40.80289615]
[1723968421991,11.23567284,2607.3,2607.2,40.80289615]
[1723968422187,7.40047284,2607.3,2607.2,40.80289615]
[1723968422393,11.23567284,2607.3,2607.2,40.80289615]
[1723968422591,7.40047284,2607.3,2607.2,40.80289615]
[1723968423492,5.09127284,2607.3,2607.2,40.80289615]
[1723968423701,6.05827284,2607.3,2607.2,40.80289615]
[1723968424002,7.40047284,2607.3,2607.2,40.80289615]
[1723968425490,6.05827284,2607.3,2607.2,40.80289615]
[1723968426101,7.19747284,2607.3,2607.2,40.80289615]
[1723968428390,5.5288,2607.3,2607.2,40.80289615]
[1723968428800,2.321,2607.3,2607.2,40.80289615]
[1723968429302,5.5288,2607.3,2607.2,40.80289615]
[1723968432103,2.321,2607.3,2607.2,40.80289615]
[1723968432304,2.3092,2607.3,2607.2,40.80289615]
[1723968433206,0.967,2607.3,2607.2,40.80289615]
[1723968433600,0.3528,2607.3,2607.2,40.80289615]
[1723968433902,4.00233698,2607.6,2607.5,1.3421]
[1723968434291,4.00233698,2607.6,2607.5,8.3851]
[1723968434498,4.00233698,2607.6,2607.5,5.1773]
[1723968434696,4.00233698,2607.6,2607.5,49.1851]
[1723968436599,2.51226138,2607.6,2607.5,49.1851]
[1723968437409,2.51226138,2607.6,2607.5,55.1521]
[1723968438207,2.51226138,2607.6,2607.5,55.8916]
[1723968439797,1.37196138,2607.6,2607.5,55.8916]
[1723968439999,1.75257503,2607.9,2607.8,4.02582]
[1723968440207,3.51716593,2608.1,2608.0,1.34184]
[1723968440715,3.51716593,2608.1,2608.0,50.97624]
[1723968441508,3.51716593,2608.1,2608.0,46.98055853]
[1723968441698,1.50712219,2608.2,2608.1,1.34179]
[1723968441897,0.967,2608.3,2608.2,1.34174]
[1723968442210,0.967,2608.3,2608.2,5.52804]
[1723968443106,0.967,2608.3,2608.2,5.87924]
[1723968443300,2.00949625,2608.4,2608.3,1.34168]
[1723968443506,2.01444933,2608.5,2608.4,1.34163]
[1723968443703,0.00495308,2608.5,2608.4,8.38303]
[1723968443905,0.00495308,2608.5,2608.4,49.18303]
[1723968448410,0.00495308,2608.5,2608.4,49.17123]
[1723968449916,2.31353308,2608.5,2608.4,44.6336]
[1723968450108,2.65683308,2608.5,2608.4,40.8]
[1723968451717,1.68983308,2608.5,2608.4,40.8]
[1723968453614,0.34825308,2608.5,2608.4,40.8]
[1723968454020,1.68983308,2608.5,2608.4,40.8]
[1723968455215,0.34825308,2608.5,2608.4,40.8]
[1723968456114,0.34825308,2608.5,2608.4,42.14163]
[1723968456421,0.34825308,2608.5,2608.4,45.97523]
[1723968457419,0.00495308,2608.5,2608.4,45.97523]
[1723968457716,0.00495308,2608.5,2608.4,47.66636]
[1723968457909,0.00495308,2608.5,2608.4,50.87416]
[1723968459917,0.00495308,2608.5,2608.4,49.53253]
[1723968460619,0.00495308,2608.5,2608.4,55.87416]
[1723968461022,0.00495308,2608.5,2608.4,50.87416]
[1723968463532,0.00495308,2608.5,2608.4,47.66636]
[1723968463922,0.00495308,2608.5,2608.4,50.87416]
[1723968464313,0.00495308,2608.5,2608.4,55.87416]
[1723968464523,0.00495308,2608.5,2608.4,69.35152831]
[1723968468012,4.6e-07,2608.7,2608.6,4.02459]
[1723968468211,4.6e-07,2608.7,2608.6,5.36612]
[1723968468428,4.6e-07,2608.7,2608.6,28.22079743]
[1723968468629,4.6e-07,2608.7,2608.6,69.34319743]
[1723968469123,5.33e-06,2608.7,2608.6,69.34319743]
[1723968469625,1.50299921,2609.6,2609.5,1.34107]
[1723968469825,0.3738,2609.7,2609.6,1.34102]
[1723968470217,1.87645009,2609.7,2609.6,46.32892]
[1723968470515,1.88033372,2609.7,2609.6,46.33301802]
[1723968471424,1.88033372,2609.7,2609.6,45.97711802]
[1723968471629,1.71864363,2609.7,2609.6,40.80409802]
[1723968471824,1.87985879,2609.7,2609.6,42.14511802]
[1723968472652,10.71185879,2609.7,2608.9,3.2078]
[1723968472927,1.50217516,2609.2,2608.9,3.2078]
[1723968473129,1.50202916,2609.2,2609.1,1.34127]
[1723968473720,1.50202916,2609.2,2609.1,42.1443059]
[1723968475927,2.23162916,2609.3,2609.2,1.34122]
[1723968476421,0.7296,2609.3,2609.2,1.34122]
[1723968476841,0.7296,2609.3,2609.1,42.1442859]
[1723968477024,1.50228073,2609.2,2609.1,42.1442859]
[1723968478417,1.50228073,2609.4,2609.1,49.6358359]
[1723968478621,0.3606,2609.5,2609.4,1.34112]
[1723968478622,1.86288073,2609.5,2609.4,1.34112]
[1723968478823,1.50228073,2609.5,2609.4,1.34112]
[1723968479021,0.709,2609.6,2609.5,1.34107]
[1723968479224,0.709,2609.6,2609.5,42.14107]
[1723968480335,2.21128073,2609.6,2609.5,42.14107]
[1723968480923,0.709,2609.6,2609.5,42.14107]
[1723968482738,0.709,2609.6,2609.5,42.12927]
[1723968484030,0.709,2609.6,2609.5,40.8]
[1723968484238,0.709,2609.6,2609.5,42.14107]
[1723968485936,0.38058363,2609.7,2609.6,1.34102]
[1723968486231,2.23186436,2609.7,2609.6,1.34102]
[1723968487032,0.72958363,2609.7,2609.6,1.34102]
[1723968488428,0.72958363,2609.7,2609.5,40.8]
[1723968488629,0.72958363,2609.7,2609.6,1.34102]
[1723968498545,2.23186436,2609.7,2609.6,1.34102]
[1723968498736,6.06386436,2609.7,2609.5,42.14105]
[1723968498937,2.23186436,2609.7,2609.5,42.14105]
[1723968499842,3.57284436,2609.7,2609.5,40.8]
[1723968500044,1.50228073,2609.6,2609.5,40.8]
[1723968502243,1.34102,2609.6,2609.5,40.8]
[1723968502544,3.35051625,2609.6,2609.5,40.8]
[1723968503044,1.34102,2609.6,2609.5,40.8]
[1723968503238,2.00483694,2609.6,2609.5,40.8]
[1723968503442,5.17302,2609.6,2609.5,40.8]
[1723968504435,3.832,2609.6,2609.5,40.8]
[1723968505948,7.66594795,2609.6,2609.5,40.8]
[1723968506634,9.00696795,2609.6,2609.5,40.8]
[1723968506945,9.02163927,2609.6,2609.5,40.8]
[1723968507157,6.51404,2609.6,2609.5,40.8]
[1723968507648,5.17302,2609.6,2609.5,40.8]
[1723968511447,0.72958363,2609.7,2609.5,40.8]
[1723968511649,2.50940528,2609.6,2609.5,40.8]
[1723968511946,5.90256363,2609.7,2609.5,40.8]
[1723968512340,1.34102,2609.6,2609.5,40.8]
[1723968512553,4.3329314,2609.6,2609.5,40.8]
[1723968512849,8.1649314,2609.6,2609.5,40.8]
[1723968514051,5.17302,2609.6,2609.5,40.8]
[1723968514346,8.18480305,2609.6,2609.5,40.8]
[1723968514755,8.19580305,2609.6,2609.5,40.8]
[1723968515741,5.18402,2609.6,2609.5,40.8]
[1723968515945,8.19570829,2609.6,2609.5,40.8]
[1723968519642,6.85468829,2609.6,2609.5,40.8]
[1723968521650,0.011,2609.6,2609.5,40.8]
[1723968521851,0.011,2609.6,2609.5,41.1658]
[1723968522048,0.011,2609.6,2609.5,42.50687]
[1723968523349,0.011,2609.6,2609.5,41.1658]
[1723968524048,0.011,2609.6,2609.5,42.50687]
[1723968526359,0.011,2609.6,2609.5,41.1658]
[1723968528056,0.011,2609.6,2609.5,42.50687]
[1723968528250,8.39182,2609.6,2609.5,40.8]
[1723968528452,10.77868829,2609.6,2609.5,40.8]
[1723968528759,9.10802,2609.6,2609.5,40.8]
[1723968530052,9.09702,2609.6,2609.5,40.8]
[1723968530658,7.756,2609.6,2609.5,40.8]
[1723968530963,9.09702,2609.6,2609.5,40.8]
[1723968531656,12.10940747,2609.6,2609.5,40.8]
[1723968531848,9.09702,2609.6,2609.5,40.8]
[1723968535948,12.61418593,2609.6,2609.5,40.8]
[1723968540462,1.3412,2609.3,2609.1,0.0030359]
[1723968540663,2.07882,2609.2,2609.1,0.0030359]
[1723968540860,5.46616232,2609.2,2609.1,0.0030359]
[1723968541570,4.12494232,2609.2,2609.1,40.8030359]
[1723968541768,5.46616232,2609.2,2609.1,40.8030359]
[1723968541975,2.45272,2609.2,2609.1,40.8030359]
[1723968542271,9.80268593,2609.2,2609.1,40.8030359]
[1723968542972,6.28552,2609.2,2609.1,40.8030359]
[1723968543374,9.80268593,2609.2,2609.1,40.8030359]
[1723968544070,6.28552,2609.2,2609.1,40.8030359]
[1723968545966,7.62674,2609.2,2609.1,40.8030359]
[1723968546167,16.14390593,2609.2,2609.1,40.8030359]
[1723968546366,16.62907698,2609.2,2609.1,40.8030359]
[1723968546574,12.62674,2609.2,2609.1,40.8030359]
[1723968546770,16.62907698,2609.2,2609.1,40.8030359]
[1723968547167,16.64007698,2609.2,2609.1,40.8030359]